Workbook

Sheet Key figures
A1: KONE | C1: Restated | E1: Reported
A3: Key Figures | C3: 1-12/2017 | E3: 1-12/2017
A4: Orders received | B4: MEUR | C4: 7554 | E4: 7554
A5: Order book | B5: MEUR | C5: 7357.8 | E5: 8240.2
A6: Sales | B6: MEUR | C6: 8796.7 | E6: 8942.4
A7: Operating income | B7: MEUR | C7: 1192.3 | E7: 1217.1
A8: Operating income margin | B8: % | C8: 13.6 | E8: 13.6
A9: Adjusted EBIT | B9: MEUR | C9: 1205.5 | E9: 1230.3
A10: Adjusted EBIT margin | B10: % | C10: 13.7 | E10: 13.8
A11: Income before tax | B11: MEUR | C11: 1250.4 | E11: 1275.2
A12: Net income | B12: MEUR | C12: 960.2 | E12: 975.1
A13: Basic earnings per share | B13: EUR | C13: 1.86 | E13: 1.89
A14: Cash flow from operations (before financing items and taxes) | B14: MEUR | C14: 1263.3 | E14: 1263.3
A15: Interest-bearing net debt | B15: MEUR | C15: -1690.2 | E15: -1690.2
A16: Equity ratio | B16: % | C16: 50.2 | E16: 49
A17: Return on equity | B17: % | C17: 32 | E17: 34.2
A18: Net working capital (including financing items and taxes) | B18: MEUR | C18: -745 | E18: -875.6
A19: Gearing | B19: % | C19: -55.3 | E19: -58.1
A22: Net sales by region
A23: MEUR | C23: 1-12/2017 | E23: 1-12/2017
A24: EMEA | C24: 3594.5 | D24: 0.41 | E24: 3631.7 | F24: 0.41
A25: Americas | C25: 1778.5 | D25: 0.2 | E25: 1814.8 | F25: 0.2
A26: Asia-Pacific | C26: 3423.7 | D26: 0.39 | E26: 3495.9 | F26: 0.39
A27: Total | C27: 8796.7 | E27: 8942.4
A30: Net sales by business
A31: MEUR | C31: 1-12/2017 | E31: 1-12/2017
A32: New equipment | C32: 4653.9 | D32: 0.53 | E32: 4767.7 | F32: 0.53
A33: Services | C33: 4142.8 | D33: 0.47 | E33: 4174.7 | F33: 0.47
A34: Maintenance | C34: 2887.3 | D34: 0.33 | E34: 2887.3 | F34: 0.32
A35: Modernization | C35: 1255.6 | D35: 0.14 | E35: 1287.5 | F35: 0.14
A36: Total | C36: 8796.7 | E36: 8942.4

Sheet Statement of income
A1: KONE
A3: Consolidated statement of income
B5: Restated 2017 | M5: Reported 2017
A7: MEUR | B7: Q1 | C7: % | D7: Q2 | E7: % | F7: Q3 | G7: % | H7: Q4 | I7: % | J7: 1-12/2017 | K7: % | M7: Q1 | N7: % | O7: Q2 | P7: % | Q7: Q3 | R7: % | S7: Q4 | T7: % | U7: 1-12/2017 | V7: %
A8: Sales | B8: 1943.4 | D8: 2337.2 | F8: 2209.7 | H8: 2306.3 | J8: 8796.7 | M8: 1810.3 | O8: 2284.4 | Q8: 2190.8 | S8: 2656.9 | U8: 8942.4
A9: Costs and expenses | B9: -1669.2 | D9: -1973.3 | F9: -1863.5 | H9: -1984.1 | J9: -7490.1 | M9: -1564.2 | O9: -1929.9 | Q9: -1855.2 | S9: -2261.7 | U9: -7611
A10: Depreciation and amortization | B10: -28.4 | D10: -28.2 | F10: -28.3 | H10: -29.5 | J10: -114.3 | M10: -28.4 | O10: -28.2 | Q10: -28.3 | S10: -29.5 | U10: -114.3
A11: Operating income | B11: 245.8 | C11: 12.6 | D11: 335.8 | E11: 14.4 | F11: 317.9 | G11: 14.4 | H11: 292.8 | I11: 12.7 | J11: 1192.3 | K11: 13.6 | M11: 217.7 | N11: 12 | O11: 326.4 | P11: 14.3 | Q11: 307.3 | R11: 14 | S11: 365.7 | T11: 13.8 | U11: 1217.1 | V11: 13.6
A12: Share of associated companies' net income | B12: 0.3 | D12: 0 | F12: -0.2 | H12: -0.3 | J12: -0.2 | M12: 0.3 | O12: 0 | Q12: -0.2 | S12: -0.3 | U12: -0.2
A13: Financing income | B13: 28.5 | D13: 14.8 | F13: 16.2 | H13: 12.7 | J13: 72.2 | M13: 28.5 | O13: 14.8 | Q13: 16.2 | S13: 12.7 | U13: 72.2
A14: Financing expenses | B14: -2.8 | D14: -4.1 | F14: -3.7 | H14: -3.3 | J14: -13.9 | M14: -2.8 | O14: -4.1 | Q14: -3.7 | S14: -3.3 | U14: -13.9
A15: Income before taxes | B15: 271.8 | C15: 14 | D15: 346.5 | E15: 14.8 | F15: 330.2 | G15: 14.9 | H15: 301.9 | I15: 13.1 | J15: 1250.4 | K15: 14.2 | M15: 243.7 | N15: 13.5 | O15: 337.1 | P15: 14.8 | Q15: 319.6 | R15: 14.6 | S15: 374.8 | T15: 14.1 | U15: 1275.2 | V15: 14.3
A16: Taxes | B16: -63.1 | D16: -80.4 | F16: -76.6 | H16: -70.1 | J16: -290.2 | M16: -56.1 | O16: -77.5 | Q16: -73.5 | S16: -93 | U16: -300.1
A17: Net income | B17: 208.7 | C17: 10.7 | D17: 266.1 | E17: 11.4 | F17: 253.6 | G17: 11.5 | H17: 231.8 | I17: 10 | J17: 960.2 | K17: 10.9 | M17: 187.7 | N17: 10.4 | O17: 259.5 | P17: 11.4 | Q17: 246.1 | R17: 11.2 | S17: 281.8 | T17: 10.6 | U17: 975.1 | V17: 10.9
A19: Net income attributable to:
A20: Shareholders of the parent company | B20: 206.5 | D20: 265.1 | F20: 252.9 | H20: 231.2 | J20: 955.8 | M20: 185.4 | O20: 257.7 | Q20: 244.9 | S20: 280 | U20: 968
A21: Non-controlling interests | B21: 2.3 | D21: 0.9 | F21: 0.7 | H21: 0.5 | J21: 4.4 | M21: 2.2 | O21: 1.8 | Q21: 1.2 | S21: 1.8 | U21: 7.1
A22: Total | B22: 208.7 | D22: 266.1 | F22: 253.6 | H22: 231.8 | J22: 960.2 | M22: 187.7 | O22: 259.5 | Q22: 246.1 | S22: 281.8 | U22: 975.1
A24: Earnings per share for profit attributable to the
A25: shareholders of the parent company, EUR
A26: Basic earnings per share, EUR | B26: 0.4 | D26: 0.52 | F26: 0.49 | H26: 0.45 | J26: 1.86 | M26: 0.36 | O26: 0.5 | Q26: 0.48 | S26: 0.55 | U26: 1.89
A27: Diluted earnings per share, EUR | B27: 0.4 | D27: 0.52 | F27: 0.49 | H27: 0.45 | J27: 1.86 | M27: 0.36 | O27: 0.5 | Q27: 0.48 | S27: 0.54 | U27: 1.88

Sheet Statement of financial position
A1: KONE
A3: Condensed consolidated statement of financial position
C5: Restated | I5: Reported
A6: Assets
A7: MEUR | C7: Q4/16 | D7: Q1/17 | E7: Q2/17 | F7: Q3/17 | G7: Q4/17 | I7: Q4/16 | J7: Q1/17 | K7: Q2/17 | L7: Q3/17 | M7: Q4/17
A8: Non-current assets
A9: Goodwill | C9: 1371.8 | D9: 1369.9 | E9: 1333.2 | F9: 1324.1 | G9: 1325.5 | I9: 1371.8 | J9: 1369.9 | K9: 1333.2 | L9: 1324.1 | M9: 1325.5
A10: Other intangible assets | C10: 292.9 | D10: 287.2 | E10: 276.8 | F10: 272.4 | G10: 274.5 | I10: 292.9 | J10: 287.2 | K10: 276.8 | L10: 272.4 | M10: 274.5
A11: Tangible assets | C11: 368.3 | D11: 369.7 | E11: 365.8 | F11: 368.5 | G11: 377 | I11: 368.3 | J11: 369.7 | K11: 365.8 | L11: 368.5 | M11: 377
A12: Loan receivables and other interest-bearing assets | B12: I | C12: 7.4 | D12: 7.3 | E12: 7.3 | F12: 0.5 | G12: 0.7 | I12: 7.4 | J12: 7.3 | K12: 7.3 | L12: 0.5 | M12: 0.7
A13: Investments | C13: 129.9 | D13: 134.2 | E13: 125.8 | F13: 121.2 | G13: 134.3 | I13: 129.9 | J13: 134.2 | K13: 125.8 | L13: 121.2 | M13: 115.8
A14: Employee benefits | B14: I | C14: - | D14: - | E14: - | F14: - | G14: 11.5 | I14: - | J14: - | K14: - | L14: - | M14: 11.5
A15: Deferred tax assets | B15: II | C15: 295.8 | D15: 288.6 | E15: 276.9 | F15: 270 | G15: 256.4 | I15: 318.4 | J15: 319.5 | K15: 305.1 | L15: 299.4 | M15: 268.3
A16: Total non-current assets | C16: 2466 | D16: 2456.9 | E16: 2385.9 | F16: 2356.6 | G16: 2380 | I16: 2488.5 | J16: 2487.8 | K16: 2414 | L16: 2386.1 | M16: 2373.4
A18: Current assets
A19: Inventories | B19: II | C19: 592.6 | D19: 652.3 | E19: 646.4 | F19: 673 | G19: 661.3 | I19: 1373.5 | J19: 1516.2 | K19: 1511.2 | L19: 1527.7 | M19: 1244.6
A20: Accounts receivable | B20: II | C20: 1901.9 | D20: 1813 | E20: 1866.1 | F20: 1779.5 | G20: 1910.8 | I20: 1573.7 | J20: 1502.5 | K20: 1557.9 | L20: 1484.2 | M20: 1608.7
A21: Deferred assets | B21: II | C21: 454.7 | D21: 485.1 | E21: 452.3 | F21: 483.7 | G21: 404.5 | I21: 368.4 | J21: 427.5 | K21: 404.6 | L21: 401.9 | M21: 378.3
A22: Income tax receivables | B22: II | C22: 61.4 | D22: 60.5 | E22: 79.5 | F22: 95.3 | G22: 67.5 | I22: 61.4 | J22: 60.5 | K22: 79.5 | L22: 95.3 | M22: 67.5
A23: Current deposits and loan receivables | B23: I | C23: 1496.6 | D23: 1053.3 | E23: 1098.8 | F23: 1284 | G23: 1568.8 | I23: 1496.6 | J23: 1053.3 | K23: 1098.8 | L23: 1284 | M23: 1568.8
A24: Cash and cash equivalents | B24: I | C24: 589.2 | D24: 536.6 | E24: 607.9 | F24: 558.7 | G24: 496.5 | I24: 589.2 | J24: 536.6 | K24: 607.9 | L24: 558.7 | M24: 496.5
A25: Total current assets | C25: 5096.3 | D25: 4600.7 | E25: 4751 | F25: 4874.2 | G25: 5109.5 | I25: 5462.8 | J25: 5096.5 | K25: 5259.9 | L25: 5351.8 | M25: 5364.4
A27: Total assets | C27: 7562.2 | D27: 7057.5 | E27: 7136.8 | F27: 7230.8 | G27: 7489.5 | I27: 7951.3 | J27: 7584.3 | K27: 7673.9 | L27: 7737.9 | M27: 7737.8
A29: Equity and liabilities
A30: MEUR | C30: Q4/16 | D30: Q1/17 | E30: Q2/17 | F30: Q3/17 | G30: Q4/17 | I30: Q4/16 | J30: Q1/17 | K30: Q2/17 | L30: Q3/17 | M30: Q4/17
A31: Equity | C31: 2952.8 | D31: 2376.2 | E31: 2569.6 | F31: 2796.5 | G31: 3056.5 | I31: 2795.6 | J31: 2195.8 | K31: 2388.7 | L31: 2617.8 | M31: 2907.4
A33: Non-current liabilities
A34: Loans | B34: I | C34: 203.1 | D34: 203.9 | E34: 208.3 | F34: 204.2 | G34: 194.7 | I34: 203.1 | J34: 203.9 | K34: 208.3 | L34: 204.2 | M34: 194.7
A35: Employee benefits | B35: I | C35: 176.7 | D35: 179.9 | E35: 175.7 | F35: 153.3 | G35: 152.2 | I35: 176.7 | J35: 179.9 | K35: 175.7 | L35: 153.3 | M35: 152.2
A36: Deferred tax liabilities | B36: II | C36: 160.1 | D36: 160.4 | E36: 164.1 | F36: 161.9 | G36: 143.8 | I36: 154.2 | J36: 155.9 | K36: 153.2 | L36: 148.9 | M36: 136.1
A37: Total non-current liabilities | C37: 539.9 | D37: 544.2 | E37: 548.1 | F37: 519.5 | G37: 490.7 | I37: 534 | J37: 539.7 | K37: 537.2 | L37: 506.5 | M37: 483
A39: Provisions | B39: II | C39: 179.6 | D39: 158.7 | E39: 141.1 | F39: 129.9 | G39: 137.9 | I39: 183.2 | J39: 163.4 | K39: 146.4 | L39: 135.1 | M39: 142.3
A41: Current liabilities
A42: Loans | B42: I | C42: 25.8 | D42: 30.6 | E42: 27.9 | F42: 20.7 | G42: 40.5 | I42: 25.8 | J42: 30.6 | K42: 27.9 | L42: 20.7 | M42: 40.5
A43: Advance payments received and deferred revenue | B43: II | C43: 1428.6 | D43: 1474.4 | E43: 1376.8 | F43: 1376.7 | G43: 1404.6 | I43: 1976.9 | J43: 2182.7 | K43: 2098.6 | L43: 2072.1 | M43: 1806.1
A44: Accounts payable | B44: II | C44: 743.3 | D44: 644.2 | E44: 735.1 | F44: 690.2 | G44: 705.1 | I44: 743.3 | J44: 644.2 | K44: 735.1 | L44: 690.2 | M44: 705.1
A45: Accruals | B45: II | C45: 1609.7 | D45: 1756.8 | E45: 1653.4 | F45: 1610.9 | G45: 1569.2 | I45: 1610 | J45: 1755.5 | K45: 1655.2 | L45: 1609.2 | M45: 1568.3
A46: Income tax payables | B46: II | C46: 82.5 | D46: 72.5 | E46: 84.8 | F46: 86.4 | G46: 85.1 | I46: 82.5 | J46: 72.5 | K46: 84.8 | L46: 86.4 | M46: 85.1
A47: Total current liabilities | C47: 3890 | D47: 3978.5 | E47: 3878 | F47: 3784.9 | G47: 3804.4 | I47: 4438.5 | J47: 4685.4 | K47: 4601.6 | L47: 4478.5 | M47: 4205
A49: Total equity and liabilities | C49: 7562.2 | D49: 7057.5 | E49: 7136.8 | F49: 7230.8 | G49: 7489.5 | I49: 7951.3 | J49: 7584.3 | K49: 7673.9 | L49: 7737.9 | M49: 7737.8
A51: Items designated " I " comprise interest-bearing net debt.
A52: Items designated " II " comprise net working capital.

Sheet Statement of cash flows
A1: KONE
A3: Condensed consolidated statement of cash flows
B5: Restated 2017 | H5: Reported 2017
A7: MEUR | B7: Q1 | C7: Q2 | D7: Q3 | E7: Q4 | F7: 1-12/2017 | H7: Q1 | I7: Q2 | J7: Q3 | K7: Q4 | L7: 1-12/2017
A8: Operating income | B8: 245.8 | C8: 335.8 | D8: 317.9 | E8: 292.8 | F8: 1192.3 | H8: 217.7 | I8: 326.4 | J8: 307.3 | K8: 365.7 | L8: 1217.1
A9: Change in working capital before financing items and taxes | B9: 31.1 | C9: -43.6 | D9: -43.5 | E9: 12.7 | F9: -43.3 | H9: 59.2 | I9: -34.2 | J9: -32.9 | K9: -60.3 | L9: -68.1
A10: Depreciation and amortization | B10: 28.4 | C10: 28.2 | D10: 28.3 | E10: 29.5 | F10: 114.3 | H10: 28.4 | I10: 28.2 | J10: 28.3 | K10: 29.5 | L10: 114.3
A11: Cash flow from operations before financing items and taxes | B11: 305.3 | C11: 320.4 | D11: 302.7 | E11: 335 | F11: 1263.3 | H11: 305.3 | I11: 320.4 | J11: 302.7 | K11: 335 | L11: 1263.3
A13: Cash flow from financing items and taxes | B13: -50 | C13: -84.5 | D13: -107.7 | E13: -57.5 | F13: -299.6 | H13: -50 | I13: -84.5 | J13: -107.7 | K13: -57.5 | L13: -299.6
A14: Cash flow from operating activities | B14: 255.3 | C14: 235.9 | D14: 195 | E14: 277.5 | F14: 963.7 | H14: 255.3 | I14: 235.9 | J14: 195 | K14: 277.5 | L14: 963.7
A16: Cash flow from investing activities | B16: -27 | C16: -30.1 | D16: -39.2 | E16: -47.2 | F16: -143.5 | H16: -27 | I16: -30.1 | J16: -39.2 | K16: -47.2 | L16: -143.5
A18: Cash flow after investing activities | B18: 228.4 | C18: 205.8 | D18: 155.8 | E18: 230.2 | F18: 820.2 | H18: 228.4 | I18: 205.8 | J18: 155.8 | K18: 230.2 | L18: 820.2
A20: Purchase of own shares | B20: - | C20: - | D20: - | E20: - | F20: - | H20: - | I20: - | J20: - | K20: - | L20: -
A21: Increase in equity (option rights) | B21: - | C21: 14.5 | D21: 7.1 | E21: 3.3 | F21: 24.9 | H21: - | I21: 14.5 | J21: 7.1 | K21: 3.3 | L21: 24.9
A22: Profit distribution | B22: -729.8 | C22: -65.6 | D22: - | E22: - | F22: -795.4 | H22: -729.8 | I22: -65.6 | J22: - | K22: - | L22: -795.4
A23: Change in deposits and loans receivable, net | B23: 443.1 | C23: -66.8 | D23: -174.5 | E23: -284.2 | F23: -82.4 | H23: 443.1 | I23: -66.8 | J23: -174.5 | K23: -284.2 | L23: -82.4
A24: Change in loans payable and other interest-bearing debt | B24: 4.7 | C24: -1.1 | D24: -27.7 | E24: -9.1 | F24: -33.2 | H24: 4.7 | I24: -1.1 | J24: -27.7 | K24: -9.1 | L24: -33.2
A25: Changes in non-controlling interests | B25: - | C25: -0.4 | D25: -2.7 | E25: -2.4 | F25: -5.5 | H25: - | I25: -0.4 | J25: -2.7 | K25: -2.4 | L25: -5.5
A26: Cash flow from financing activities | B26: -282 | C26: -119.5 | D26: -197.8 | E26: -292.4 | F26: -891.7 | H26: -282 | I26: -119.5 | J26: -197.8 | K26: -292.4 | L26: -891.7
A28: Change in cash and cash equivalents | B28: -53.6 | C28: 86.4 | D28: -42 | E28: -62.2 | F28: -71.5 | H28: -53.6 | I28: 86.4 | J28: -42 | K28: -62.2 | L28: -71.5
A30: Cash and cash equivalents at beginning of period | B30: 589.2 | C30: 536.6 | D30: 607.9 | E30: 558.7 | F30: 589.2 | H30: 589.2 | I30: 536.6 | J30: 607.9 | K30: 558.7 | L30: 589.2
A31: Translation difference | B31: 1 | C31: -15 | D31: -7.1 | E31: -0.0 | F31: -21.1 | H31: 1 | I31: -15 | J31: -7.1 | K31: -0.0 | L31: -21.1
A33: Cash and cash equivalents at end of period | B33: 536.6 | C33: 607.9 | D33: 558.7 | E33: 496.5 | F33: 496.5 | H33: 536.6 | I33: 607.9 | J33: 558.7 | K33: 496.5 | L33: 496.5
A36: Change in interest-bearing net debt
A37: MEUR | B37: Q1 | C37: Q2 | D37: Q3 | E37: Q4 | F37: 1-12/2017 | H37: Q1 | I37: Q2 | J37: Q3 | K37: Q4 | L37: 1-12/2017
A38: Interest-bearing net debt at beginning of period | B38: -1687.6 | C38: -1182.8 | D38: -1302.1 | E38: -1464.9 | F38: -1687.6 | H38: -1687.6 | I38: -1182.8 | J38: -1302.1 | K38: -1464.9 | L38: -1687.6
A39: Interest-bearing net debt at end of period | B39: -1182.8 | C39: -1302.1 | D39: -1464.9 | E39: -1690.2 | F39: -1690.2 | H39: -1182.8 | I39: -1302.1 | J39: -1464.9 | K39: -1690.2 | L39: -1690.2
A40: Change in interest-bearing net debt | B40: 504.8 | C40: -119.3 | D40: -162.8 | E40: -225.3 | F40: -2.6 | H40: 504.8 | I40: -119.3 | J40: -162.8 | K40: -225.3 | L40: -2.6

Sheet tulos ja tase for AC (hidden)
A3: Consolidated statement of income
A4: MEUR | C4: 10-12/2011 | D4: % | E4: 10-12/2010 | F4: % | G4: 1-12/2011 | H4: % | I4: 1-9/2009 | J4: % | K4: 1-12/2010 | L4: %
A5: Sales | C5: 1588.8 | E5: 1488.8 | G5: 5225.2 | I5: 3316.9 | K5: 4986.6
A6: Costs and expenses | C6: -1337.5 | E6: -1245.4 | G6: -4434.2 | I6: -2873 | K6: -4226.7
A7: Depreciation | C7: -18.3 | E7: -16.1 | G7: -65.9 | I7: -46.3 | K7: -63.5
A8: Operating income | C8: =SUM(C5:C7) -> 233 | D8: =C8/C5*100 -> 14.66515609 | E8: 227.3 | F8: =E8/E5*100 -> 15.26732939 | G8: =SUM(G5:G7) -> 725.1 | H8: =G8/G5*100 -> 13.87698079 | I8: =SUM(I5:I7) -> 397.6 | J8: =I8/I5*100 -> 11.98709639 | K8: 696.4 | L8: =K8/K5*100 -> 13.96542735
A9: Share of associated companies' net income | C9: 65.8 | E9: 3.3 | G9: 73.3 | I9: 4.6 | K9: 12.3
A10: Financing income | C10: 4.1 | E10: 3.2 | G10: 26.4 | I10: 25.8 | K10: 14.7
A11: Financing expenses | C11: -3.5 | E11: -2.2 | G11: -8.2 | I11: -7.5 | K11: -9
A12: Income before taxes | C12: =SUM(C8:C11) -> 299.4 | D12: =C12/C5*100 -> 18.84441088 | E12: 231.6 | F12: =E12/E5*100 -> 15.55615261 | G12: =SUM(G8:G11) -> 816.6 | H12: =G12/G5*100 -> 15.62810993 | I12: =SUM(I8:I11) -> 420.5 | J12: =I12/I5*100 -> 12.67750008 | K12: 714.4 | L12: =K12/K5*100 -> 14.32639474
A13: Taxes | C13: -52.9 | E13: -57.8 | G13: -172.2 | I13: -87.1 | K13: -178.5
A14: Net income | C14: =SUM(C12:C13) -> 246.5 | D14: =C14/C5*100 -> 15.51485398 | E14: 173.8 | F14: =E14/E5*100 -> 11.67383127 | G14: =SUM(G12:G13) -> 644.4 | H14: =G14/G5*100 -> 12.3325423 | I14: =SUM(I12:I13) -> 333.4 | J14: =I14/I5*100 -> 10.05155416 | K14: 535.9 | L14: =K14/K5*100 -> 10.74680143
A16: Net income attributable to:
A17: Shareholders of the parent company | C17: =C19-C18 -> 246.3 | E17: 173.9 | G17: =G19-G18 -> 643.6 | I17: 299.1 | K17: 535.3
A18: Non-controlling interests | C18: 0.2 | E18: -0.1 | G18: 0.8 | I18: 0.7 | K18: 0.6
A19: Total | C19: =C14 -> 246.5 | E19: 173.8 | G19: =G14 -> 644.4 | I19: =I14 -> 333.4 | K19: 535.9
A21: Earnings per share for profit attributable to the
A22: shareholders of the parent company, EUR
A23: Basic earnings per share, EUR | C23: 0.96 | E23: 0.68 | G23: 2.52 | I23: 1.18 | K23: 2.1
A24: Diluted earnings per share, EUR | C24: 0.96 | E24: 0.68 | G24: 2.51 | I24: 1.18 | K24: 2.09
A26: Basic earnings per share excluding the one-time gain relating to the revaluation of the previously held 40% interest in GiantKONE, EUR | G26: 2.3
